fUSD/lending_fUSD_20260318
["ID","MTS","AMOUNT","RATE_DAILY","PERIOD"]
[408529889,1773838246982,-215.42677579,0.00017472,2]
[408529890,1773838246992,-935.29835188,0.00017497,2]
[408529891,1773838247001,-1000.0,0.00017499,2]
[408529892,1773838247011,-5300.0,0.000175,6]
[408529893,1773838247020,-12764.23054786,0.00017507,2]
[408529894,1773838247029,-879.0,0.00017527,2]
[408529895,1773838247039,-168.0,0.00017532,2]
[408529896,1773838247049,-168.0,0.00017584,2]
[408529897,1773838247059,-12764.23054786,0.00017585,2]
[408529898,1773838247069,-935.29835188,0.00017598,2]
[408529899,1773838247079,-1000.0,0.000176,6]
[408529900,1773838247089,-1167.0,0.00017627,2]
[408529901,1773838247098,-879.0,0.00017638,2]
[408529902,1773838247108,-2775.35226037,0.0001764,2]
[408529903,1773838247117,-10150.90761729,0.00017664,2]
[408529904,1773838247129,-2613.32293057,0.00017664,2]
[408529905,1773838247138,-879.0,0.00017668,2]
[408529906,1773838247148,-400.0,0.0001767,2]
[408529907,1773838247158,-1418.0,0.0001768,2]
[408529908,1773838247168,-168.0,0.00017695,2]
[408529909,1773838247177,-2496.0,0.00017697,5]
[408529910,1773838247187,-151.0,0.00017697,2]
[408529911,1773838247196,-935.29835188,0.00017699,2]
[408529912,1773838247206,-500.0,0.00017699,2]
[408529913,1773838247215,-500.0,0.00017699,2]
[408529914,1773838247227,-500.0,0.00017699,2]
[408529915,1773838247237,-500.0,0.00017699,2]
[408529916,1773838247247,-500.0,0.00017699,2]
[408529917,1773838247256,-154.18560746,0.00017699,2]
[408529918,1773838247266,-500.0,0.00017699,2]
[408529919,1773838247275,-81931.73516098,0.000177,2]
[408529920,1773838247285,-151.0,0.000177,2]
[408529921,1773838247294,-151.0,0.000177,2]
[408529922,1773838247304,-1000.0,0.000177,6]
[408529923,1773838247313,-151.0,0.000177,2]
[408529924,1773838247322,-151.0,0.000177,2]
[408529925,1773838247332,-151.0,0.000177,2]
[408529926,1773838247343,-168.0,0.00017704,2]
[408529927,1773838247353,-1066.32,0.00017708,2]
[408529928,1773838247364,-168.0,0.00017719,2]
[408529929,1773838247373,-816.73,0.00017734,2]
[408529930,1773838247383,-12764.23054786,0.00017743,2]
[408529931,1773838247394,-935.29835188,0.00017799,2]
[408529932,1773838247404,-192.16127792,0.000178,2]
[408529933,1773838247414,-1000.0,0.000178,6]
[408529934,1773838247424,-800.58759298,0.00017808,2]
[408529935,1773838247434,-1382.3,0.00017817,2]
[408529936,1773838247444,-1365.02470814,0.0001782,10]
[408529937,1773838247454,-321.3835725,0.0001782,2]
[408529938,1773838247464,-12764.23054786,0.00017821,2]
[408529939,1773838247475,-2000.0,0.00017833,2]
[408529940,1773838247485,-573.42,0.00017838,2]
[408529941,1773838247494,-168.0,0.00017841,2]
[408529942,1773838247504,-6829.29697905,0.00017873,2]
[408529943,1773838247514,-1656.0,0.00017899,5]
[408529944,1773838247523,-2174.9497,0.00017899,2]
[408529945,1773838247532,-500.0,0.00017899,2]
[408529946,1773838247542,-500.0,0.00017899,2]
[408529947,1773838247551,-500.0,0.00017899,2]
[408529948,1773838247560,-500.0,0.00017899,2]
[408529949,1773838247570,-500.0,0.00017899,2]
[408529950,1773838247580,-500.0,0.00017899,2]
[408529951,1773838247589,-500.0,0.00017899,2]
[408529952,1773838247600,-500.0,0.00017899,2]
[408529953,1773838247610,-500.0,0.00017899,2]
[408529954,1773838247620,-500.0,0.00017899,2]
[408529955,1773838247630,-500.0,0.00017899,2]
[408529956,1773838247640,-18505.61163152,0.000179,3]
[408529957,1773838247994,-4141.26215251,0.000179,3]
[408529958,1773838248004,-3599.1656,0.000179,2]
[408529959,1773838248014,-3381.8441971,0.000179,2]
[408529960,1773838248039,-108.87507952,0.000179,2]
[408529961,1773838248050,-1509.28072338,0.000179,2]
[408529962,1773838248059,-118.74387662,0.000179,2]
[408529963,1773838248071,-32.25612338,0.000179,2]
[408529964,1773838248080,-151.0,0.000179,2]
[408529965,1773838248090,-151.0,0.000179,2]
[408529966,1773838248100,-151.0,0.000179,2]
[408529967,1773838248109,-1654.52353852,0.000179,2]
[408529968,1773838248122,-447.16,0.000179,2]
[408529969,1773838248134,-1396.28653094,0.000179,2]
[408529970,1773838248145,-1000.0,0.000179,6]
[408529971,1773838248157,-12764.23054786,0.000179,2]
[408529972,1773838248166,-935.29835188,0.000179,2]
[408529973,1773838248175,-1760.45437009,0.000179,2]
[408529974,1773838248185,-549.28190874,0.000179,2]
[408529975,1773838248194,-1214.77807188,0.000179,2]
[408529976,1773838248203,-166.81,0.00017943,2]
[408529977,1773838248213,-402.41611725,0.0001797,2]
[408529978,1773838248225,-400.0,0.0001797,2]
[408529979,1773838248235,-400.0,0.0001797,2]
[408529980,1773838248244,-400.0,0.0001797,2]
[408529981,1773838248253,-400.0,0.0001797,2]
[408529982,1773838248263,-300.0,0.00017972,2]
[408529983,1773838248272,-672.44576879,0.00017972,2]
[408529984,1773838248281,-500.0,0.00017972,2]
[408529985,1773838248290,-500.0,0.00017972,2]
[408529986,1773838248299,-5149.0,0.00017973,2]
[408529987,1773838248310,-1964.0,0.00017973,2]
[408529988,1773838248319,-6027.0,0.00017973,2]
[408529989,1773838248328,-6683.0,0.00017973,2]
[408529990,1773838248339,-500.0,0.00017973,2]
[408529991,1773838248352,-165.81370859,0.00017973,2]
[408529992,1773838248361,-167.43228496,0.00017973,2]
[408529993,1773838248370,-500.0,0.00017973,2]
[408529994,1773838248380,-500.0,0.00017973,2]
[408529995,1773838248390,-171.29656597,0.00017973,2]
[408529996,1773838248400,-500.0,0.00017973,2]
[408529997,1773838248409,-500.58140027,0.00017973,2]
[408529998,1773838248420,-535.95738831,0.00017973,2]
[408529999,1773838248431,-500.0,0.00017973,2]
[408530000,1773838248440,-500.25065648,0.00017973,2]
[408530001,1773838248450,-500.0,0.00017973,2]
[408530002,1773838248460,-500.0,0.00017973,2]
[408530003,1773838248471,-500.0,0.00017973,2]
[408530004,1773838248480,-500.0,0.00017973,2]
[408530005,1773838248489,-500.0,0.00017973,2]
[408530006,1773838248499,-500.0,0.00017973,2]
[408530007,1773838248508,-500.0,0.00017973,2]
[408530008,1773838248519,-151.0,0.00017973,2]
[408530009,1773838248528,-151.0,0.00017973,2]
[408530010,1773838248538,-151.0,0.00017973,2]
[408530011,1773838248549,-879.0,0.00017988,2]
[408530012,1773838248563,-1308.75100802,0.00017989,2]
[408530013,1773838248573,-1308.75100802,0.0001799,2]
[408530014,1773838248582,-1308.75100802,0.0001799,2]
[408530015,1773838248592,-151.0,0.00017996,2]
[408530016,1773838248603,-151.0,0.00017997,2]
[408530017,1773838248613,-300.0,0.00017998,2]
[408530018,1773838248623,-606.7371381,0.00017999,2]
[408530019,1773838248633,-500.0,0.00017999,2]
[408530020,1773838248643,-500.0,0.00017999,2]
[408530021,1773838248653,-500.0,0.00017999,2]
[408530022,1773838248663,-500.0,0.00017999,2]
[408530023,1773838248673,-500.0,0.00017999,2]
[408530024,1773838248682,-424.604903,0.00017999,2]
[408530025,1773838248691,-500.0,0.00017999,2]
[408530026,1773838248701,-500.0,0.00017999,2]
[408530027,1773838248711,-500.0,0.00017999,2]
[408530028,1773838248721,-500.0,0.00017999,2]
[408530029,1773838248731,-500.0,0.00017999,2]
[408530030,1773838248740,-500.0,0.00017999,2]
[408530031,1773838248750,-500.0,0.00017999,2]
[408530032,1773838248760,-500.0,0.00017999,2]
[408530033,1773838248769,-500.0,0.00017999,2]
[408530034,1773838248779,-500.0,0.00017999,2]
[408530035,1773838248789,-500.0,0.00017999,2]
[408530036,1773838248799,-500.0,0.00017999,2]
[408530037,1773838248808,-500.0,0.00017999,2]
[408530038,1773838248818,-500.0,0.00017999,2]
[408530039,1773838248829,-504.81538106,0.00017999,2]
[408530040,1773838248839,-500.0,0.00017999,2]
[408530041,1773838248849,-500.0,0.00017999,2]
[408530042,1773838248859,-500.0,0.00017999,2]
[408530043,1773838248869,-500.0,0.00017999,2]
[408530044,1773838248879,-500.0,0.00017999,2]
[408530045,1773838248889,-500.0,0.00017999,2]
[408530046,1773838248899,-457.35506792,0.00017999,2]
[408530047,1773838248909,-500.0,0.00017999,2]
[408530048,1773838248919,-500.0,0.00017999,2]
[408530049,1773838248938,-425.48857279,0.00017999,2]
[408530050,1773838248949,-252.02113714,0.00017999,2]
[408530051,1773838248961,-500.0,0.00017999,2]
[408530052,1773838248970,-500.0,0.00017999,2]
[408530053,1773838248979,-500.0,0.00017999,2]
[408530054,1773838248988,-500.0,0.00017999,2]
[408530055,1773838248998,-500.0,0.00017999,2]
[408530056,1773838249007,-500.0,0.00017999,2]
[408530057,1773838249017,-500.0,0.00017999,2]
[408530058,1773838249026,-500.0,0.00017999,2]
[408530059,1773838249036,-500.0,0.00017999,2]
[408530060,1773838249046,-216.27472105,0.00017999,2]
[408530061,1773838249056,-500.0,0.00017999,2]
[408530062,1773838249065,-500.0,0.00017999,2]
[408530063,1773838249074,-500.0,0.00017999,2]
[408530064,1773838249084,-500.0,0.00017999,2]
[408530065,1773838249094,-500.0,0.00017999,2]
[408530066,1773838249103,-500.0,0.00017999,2]
[408530067,1773838249113,-500.0,0.00017999,2]
[408530068,1773838249123,-500.0,0.00017999,2]
[408530069,1773838249132,-500.0,0.00017999,2]
[408530070,1773838249145,-500.0,0.00017999,2]
[408530071,1773838249154,-500.0,0.00017999,2]
[408530072,1773838249164,-500.0,0.00017999,2]
[408530073,1773838249173,-500.0,0.00017999,2]
[408530074,1773838249183,-500.0,0.00017999,2]
[408530075,1773838249192,-500.0,0.00017999,2]
[408530076,1773838249201,-500.0,0.00017999,2]
[408530077,1773838249210,-283.3335625,0.00017999,2]
[408530078,1773838249219,-547.81859587,0.00017999,2]
[408530079,1773838249228,-500.0,0.00017999,2]
[408530080,1773838249238,-500.0,0.00017999,2]
[408530081,1773838249247,-500.0,0.00017999,2]
[408530082,1773838249256,-500.0,0.00017999,2]
[408530083,1773838249265,-500.0,0.00017999,2]
[408530084,1773838249275,-500.0,0.00017999,2]
[408530085,1773838249284,-500.0,0.00017999,2]
[408530086,1773838249293,-500.0,0.00017999,2]
[408530087,1773838249302,-500.0,0.00017999,2]
[408530088,1773838249312,-500.0,0.00017999,2]
[408530089,1773838249321,-582.43351987,0.00017999,2]
[408530090,1773838249330,-370.64345272,0.00017999,2]
[408530091,1773838249342,-1122.45503213,0.00017999,5]
[408530092,1773838249356,-1122.45503212,0.00017999,5]
[408530093,1773838249365,-1122.45503213,0.00017999,5]
[408530094,1773838249374,-500.0,0.00017999,2]
[408530095,1773838249383,-500.0,0.00017999,2]
[408530096,1773838249394,-500.0,0.00017999,2]
[408530097,1773838249403,-500.0,0.00017999,2]
[408530098,1773838249412,-500.0,0.00017999,2]
[408530099,1773838249424,-500.0,0.00017999,2]
[408530100,1773838249433,-500.0,0.00017999,2]
[408530101,1773838249443,-500.0,0.00017999,2]
[408530102,1773838249452,-500.0,0.00017999,2]
[408530103,1773838249461,-500.0,0.00017999,2]
[408530104,1773838249471,-500.0,0.00017999,2]
[408530105,1773838249480,-514.5814631,0.00017999,2]
[408530106,1773838249490,-500.0,0.00017999,2]
[408530107,1773838249499,-500.0,0.00017999,2]
[408530108,1773838249508,-500.0,0.00017999,2]
[408530109,1773838249517,-500.0,0.00017999,2]
[408530110,1773838249527,-285.35781176,0.00017999,2]
[408530111,1773838249539,-500.0,0.00017999,2]
[408530112,1773838249548,-500.0,0.00017999,2]
[408530113,1773838249558,-500.0,0.00017999,2]
[408530114,1773838249568,-500.0,0.00017999,2]
[408530115,1773838249577,-500.0,0.00017999,2]
[408530116,1773838249587,-500.0,0.00017999,2]
[408530117,1773838249596,-546.14201925,0.00017999,2]
[408530118,1773838249606,-500.0,0.00017999,2]
[408530119,1773838249615,-500.0,0.00017999,2]
[408530120,1773838249624,-479.42632625,0.00017999,2]
[408530121,1773838249634,-151.0,0.00017999,2]
[408530122,1773838249643,-151.0,0.00017999,2]
[408530123,1773838249652,-2908.18059858,0.00017999,7]
[408530124,1773838249666,-1419.14,0.00017999,7]
[408530125,1773838249677,-11010.80915455,0.00017999,7]
[408530126,1773838249699,-196.19704524,0.00017999,7]
[408530127,1773838249710,-7250.0,0.00017999,7]
[408530128,1773838249733,-2195.08274025,0.00017999,7]
[408530129,1773838249746,-6036.35355459,0.00017999,7]
[408530130,1773838249759,-45461.85245378,0.00017999,7]
[408530131,1773838249768,-2277.0,0.00017999,5]
[408530132,1773838249777,-2000.0,0.00018,2]
[408530133,1773838249787,-198535.29789258,0.00018,2]
[408530134,1773838249795,-145262.69924945,0.00018,2]
[408530135,1773838292177,1363.13705063,0.00029041,120]
[408530137,1773838591944,2000.0,0.00030137,120]
[408530138,1773838604921,-519.71642587,0.0001,2]
[408530140,1773838810073,15000.0,0.00030136,120]
[408530141,1773838841429,30000.0,0.00030136,120]
[408530149,1773838912215,30000.0,0.00030136,120]
[408530154,1773838990045,30000.0,0.00030136,120]
[408530155,1773839075205,292.79349134,0.00029041,120]
[408530156,1773839138981,-400.80810781,0.00012997,2]
[408530165,1773839431385,-254.0,0.00012681,2]
[408530166,1773839431395,-169.98,0.00012681,2]
[408530167,1773839431409,-1519.89176521,0.00012997,2]
[408530168,1773839431419,-300.0,0.00013097,2]
[408530169,1773839431430,-150.0,0.00013097,14]
[408530170,1773839431441,-1698.07610294,0.00013112,2]
[408530197,1773839431841,-343.22158602,0.00013112,2]
[408530199,1773839431852,-250.10231104,0.00013112,2]
[408530201,1773839431862,-300.0,0.00014296,2]
[408530203,1773839431872,-300.0,0.00014296,2]
[408530205,1773839431881,-1200.0,0.00014296,2]
[408530207,1773839431891,-456.08078353,0.00014297,2]
[408530209,1773839431900,-300.0,0.00014297,2]
[408530211,1773839431909,-912.51,0.00014297,2]
[408530213,1773839431919,-250.0,0.00014297,2]
[408530214,1773839431928,-169.98,0.00014795,2]
[408530215,1773839431938,-1852.42,0.00015852,2]
[408530216,1773839431948,-455.6,0.00015852,2]
[408530217,1773839431957,-200.0,0.00015852,2]
[408530218,1773839431967,-200.0,0.00015852,2]
[408530219,1773839431976,-150.0,0.00015852,2]
[408530220,1773839431985,-1287.61,0.00015852,2]
[408530221,1773839431999,-550.0,0.00016099,2]
[408530222,1773839432009,-31686.4467,0.000161,2]
[408530223,1773839432019,-208.99058585,0.00016329,2]
[408530224,1773839432028,-979.16666667,0.0001633,2]
[408530225,1773839432037,-2927.58865254,0.00016471,2]
[408530226,1773839432047,-200.0,0.00016528,2]
[408530227,1773839432057,-151.0,0.00016528,2]
[408530228,1773839432067,-234.76486537,0.00016528,2]
[408530229,1773839432076,-500.0,0.00016571,2]
[408530230,1773839432085,-500.0,0.00016571,2]
[408530231,1773839432095,-8882.6885148,0.00016571,2]
[408530232,1773839432104,-500.0,0.00016571,2]
[408530233,1773839432114,-1377.06999647,0.00016571,2]
[408530234,1773839432123,-500.0,0.00016571,2]
[408530235,1773839432133,-500.0,0.00016571,2]
[408530236,1773839432142,-500.0,0.00016571,2]
[408530237,1773839432151,-500.0,0.00016571,2]
[408530238,1773839432161,-500.0,0.00016571,2]
[408530239,1773839432172,-500.0,0.00016571,2]
[408530240,1773839432181,-500.0,0.00016571,2]
[408530241,1773839432190,-250.0,0.00016571,2]
[408530242,1773839432200,-500.0,0.00016571,2]
[408530243,1773839432209,-250.0,0.00016571,2]
[408530244,1773839432218,-500.0,0.00016571,2]
[408530245,1773839432227,-500.0,0.00016571,2]
[408530246,1773839432237,-250.0,0.00016571,2]
[408530247,1773839432247,-500.0,0.00016571,2]
[408530248,1773839432257,-250.0,0.00016571,2]
[408530249,1773839432267,-500.0,0.00016571,2]
[408530250,1773839432278,-250.0,0.00016571,2]
[408530251,1773839432287,-181.95370885,0.00016571,2]
[408530252,1773839432297,-500.0,0.00016571,2]
[408530253,1773839432306,-250.0,0.00016571,2]
[408530254,1773839432316,-500.0,0.00016571,2]
[408530255,1773839432326,-250.0,0.00016571,2]
[408530256,1773839432335,-250.0,0.00016571,2]
[408530257,1773839432344,-500.0,0.00016571,2]
[408530258,1773839432354,-250.0,0.00016571,2]
[408530259,1773839432363,-274.1930115,0.00016571,2]
[408530260,1773839432373,-250.0,0.00016571,2]
[408530261,1773839432387,-250.0,0.00016571,2]
[408530262,1773839432396,-250.0,0.00016571,2]
[408530263,1773839432405,-250.0,0.00016571,2]
[408530264,1773839432415,-151.0,0.00016571,2]
[408530265,1773839432424,-250.0,0.00016571,2]
[408530266,1773839432433,-151.0,0.00016571,2]
[408530267,1773839432442,-250.0,0.00016571,2]
[408530268,1773839432452,-201.04041191,0.00016571,2]
[408530269,1773839432461,-151.0,0.00016571,2]
[408530270,1773839432471,-250.0,0.00016571,2]
[408530271,1773839432479,-387.50682198,0.00016571,2]
[408530272,1773839432489,-500.0,0.00016571,2]
[408530273,1773839432499,-500.0,0.00016571,2]
[408530274,1773839432508,-500.0,0.00016571,2]
[408530275,1773839432518,-500.0,0.00016571,2]
[408530276,1773839432527,-500.0,0.00016571,2]
[408530277,1773839432537,-500.0,0.00016571,2]
[408530278,1773839432546,-500.0,0.00016571,2]
[408530279,1773839432556,-500.0,0.00016571,2]
[408530280,1773839432565,-500.0,0.00016571,2]
[408530281,1773839432574,-500.0,0.00016571,2]
[408530282,1773839432583,-500.0,0.00016571,2]
[408530283,1773839432593,-500.0,0.00016571,2]
[408530284,1773839432603,-500.0,0.00016571,2]
[408530285,1773839432613,-500.0,0.00016626,2]
[408530286,1773839432623,-151.0,0.00016626,2]
[408530287,1773839432632,-2927.58865247,0.0001663,2]
[408530288,1773839432642,-500.0,0.00016681,2]
[408530289,1773839432653,-151.0,0.00016681,2]
[408530290,1773839432663,-819.60688047,0.0001672,2]
[408530291,1773839432672,-6005.0,0.00016723,2]
[408530292,1773839432684,-2465.0,0.00016723,2]
[408530293,1773839432694,-500.0,0.00016736,2]
[408530294,1773839432703,-151.0,0.00016736,2]
[408530295,1773839432712,-2927.58865247,0.00016789,2]
[408530296,1773839432723,-500.0,0.00016791,2]
[408530297,1773839432733,-151.0,0.00016791,2]
[408530298,1773839432743,-500.0,0.00016845,2]
[408530299,1773839432753,-151.0,0.00016846,2]
[408530300,1773839432764,-1000.0,0.00016869,2]
[408530301,1773839432774,-169.98,0.00016908,2]
[408530302,1773839432787,-2927.58865247,0.00016947,2]
[408530303,1773839432797,-150.0,0.00017019,2]
[408530304,1773839432807,-1344.0,0.00017029,2]
[408530305,1773839432817,-620.0,0.00017029,2]
[408530306,1773839432827,-1260.0,0.00017029,2]
[408530307,1773839432837,-923.0,0.00017029,2]
[408530308,1773839432846,-1215.0,0.00017029,2]
[408530309,1773839432856,-200.0,0.00017076,2]
[408530310,1773839432865,-2927.58865247,0.00017106,2]
[408530311,1773839432875,-500.0,0.00017119,2]
[408530312,1773839432884,-168.0,0.00017251,2]
[408530313,1773839432894,-168.0,0.0001726,2]
[408530314,1773839432904,-2927.58865247,0.00017265,2]
[408530315,1773839432913,-500.0,0.00017287,2]
[408530316,1773839432923,-500.0,0.00017287,2]
[408530317,1773839432932,-274.9282927,0.00017287,2]
[408530318,1773839432942,-1000.0,0.000173,2]
[408530319,1773839432951,-168.0,0.00017307,2]
[408530320,1773839432962,-168.0,0.00017328,2]
[408530321,1773839432971,-743.0,0.0001736,2]
[408530322,1773839432982,-2335.675,0.00017361,2]
[408530323,1773839432992,-172.462,0.00017361,2]
[408530324,1773839433001,-232.65,0.000174,7]
[408530325,1773839433011,-168.0,0.00017403,2]
[408530326,1773839433021,-2927.58865247,0.00017424,2]
[408530327,1773839433031,-168.0,0.00017476,2]
[408530328,1773839433040,-350.0,0.00017519,2]
[408530329,1773839433049,-2927.58865247,0.00017582,2]
[408530330,1773839433059,-332.379985,0.0001764,7]
[408530331,1773839433068,-302.86482,0.0001764,7]
[408530332,1773839433078,-213.765012,0.0001764,7]
[408530333,1773839433087,-791.58053108,0.000177,2]
[408530334,1773839433097,-2004.14079658,0.00017702,2]
[408530335,1773839433106,-2004.14079656,0.00017724,2]
[408530336,1773839433115,-2927.58865247,0.00017741,2]
[408530337,1773839433125,-2004.14079656,0.00017746,2]
[408530338,1773839433134,-2004.14079656,0.00017768,2]
[408530339,1773839433145,-2004.14079656,0.0001779,2]
[408530340,1773839433155,-87502.076926,0.000178,2]
[408530341,1773839433168,-168.0,0.00017802,2]
[408530342,1773839433178,-250.0,0.00017808,2]
[408530343,1773839433187,-2004.14079656,0.00017812,2]
[408530344,1773839433197,-192.16127787,0.00017817,2]
[408530345,1773839433206,-426.81334,0.0001782,2]
[408530346,1773839433215,-426.81334,0.0001782,2]
[408530347,1773839433225,-192.16127787,0.00017833,2]
[408530348,1773839433235,-2004.14079656,0.00017834,2]
[408530349,1773839433244,-192.16127787,0.0001785,2]
[408530350,1773839433254,-2004.14079656,0.00017856,2]
[408530351,1773839433263,-647.89348648,0.00017862,2]
[408530352,1773839433272,-192.16127787,0.00017867,2]
[408530353,1773839433282,-192.16127787,0.00017883,2]
[408530354,1773839433291,-8043.6,0.0001789,2]
[408530355,1773839433300,-192.16127787,0.000179,2]
[408530356,1773839433309,-5000.0,0.000179,2]
[408530357,1773839433318,-2927.58865247,0.000179,2]
[408530358,1773839433327,-12827.01805881,0.000179,2]
[408530359,1773839433341,-1298.57804668,0.000179,2]
[408530360,1773839433365,-3904.73962065,0.000179,2]
[408530361,1773839433374,-24241.09709128,0.000179,2]
[408530363,1773839437691,-360.5,0.00017176,2]
[408530364,1773839437780,-166.40245011,0.00017176,2]
[408530365,1773839437795,-473.09754989,0.00017176,2]
[408530366,1773839437805,-1000.0,0.00017176,2]
[408530367,1773839437814,-2004.14079656,0.00017878,2]
[408530368,1773839437823,-10416.38405624,0.000179,2]
[408530369,1773839437835,-1552.05020783,0.000179,2]
[408530370,1773839437846,-2099.27743637,0.000179,2]
[408530371,1773839437859,-17065.35972258,0.000179,2]
[408530372,1773839437869,-225.0,0.00017919,2]
[408530373,1773839437879,-168.0,0.00017957,2]
[408530374,1773839437888,-500.0,0.00017973,2]
[408530375,1773839437897,-500.0,0.00017973,2]
[408530376,1773839437906,-500.0,0.00017973,2]
[408530378,1773839437915,-500.0,0.00017973,2]
[408530380,1773839437924,-500.0,0.00017973,2]
[408530381,1773839437934,-369.73783683,0.00017973,2]
[408530382,1773839437943,-541.0934078,0.00017973,2]
[408530383,1773839437952,-500.0,0.00017973,2]
[408530384,1773839437961,-500.0,0.00017973,2]
[408530385,1773839437970,-168.0,0.00017975,2]
[408530386,1773839437979,-1300.9140202,0.0001799,2]
[408530387,1773839437988,-6722.5296029,0.0001799,2]
[408530388,1773839437998,-447.79,0.0001799,2]
[408530389,1773839438007,-447.79,0.0001799,2]
[408530390,1773839438016,-447.79,0.0001799,2]
[408530391,1773839438027,-447.79,0.0001799,2]
[408530392,1773839438036,-447.79,0.0001799,2]
[408530393,1773839438045,-2712.64901086,0.0001799,2]
[408530394,1773839438056,-5330.95098914,0.0001799,2]
[408530395,1773839438065,-151.0,0.00017997,2]
[408530396,1773839438074,-627.15005909,0.00017999,2]
[408530398,1773839439844,-366.44089843,0.000179,2]
[408530399,1773839439856,-333.81892786,0.000179,2]
[408530412,1773839444854,-414.0,0.00017223,2]
[408530413,1773839444863,-923.79988137,0.000179,2]
[408530414,1773839444876,-380.0810889,0.000179,2]
[408530415,1773839444886,-300.68166765,0.00017999,2]
[408530416,1773839444898,-56.17568175,0.00017999,2]
[408530417,1773839444907,-155.556,0.00017999,2]
[408530418,1773839444917,-6036.3535546,0.00017999,7]
[408530419,1773839444927,-172.60107842,0.00017999,2]
[408530420,1773839444936,-409.97922347,0.00017999,2]
[408530421,1773839444946,-2195.0,0.00018,5]
[408530422,1773839444955,-1760.0,0.00018,5]
[408530423,1773839444964,-93424.2999461,0.00018,2]
[408530424,1773839444973,-37031.89610959,0.00018,2]
[408530425,1773839444986,-8202.48941519,0.00018,2]
[408530427,1773839444997,-880.83129629,0.00018,2]
[408530430,1773839445012,-266473.77685865,0.00018,2]
[408530432,1773839445023,-71758.39615652,0.00018,2]
[408530435,1773839445053,-6998.47976103,0.00018,2]
[408530446,1773839445340,-1423.40184853,0.00018,2]
[408530454,1773839445405,-431.885,0.00018,2]
[408530456,1773839445416,-361.255,0.00018,2]
[408530458,1773839445427,-217035.0,0.00018,2]
[408530460,1773839445439,-111894.9999985,0.00018,2]
[408530486,1773839445695,-1220.3333,0.00018,2]
[408530494,1773839445759,-790.21255215,0.00018,2]
[408530496,1773839445774,-1123.71239335,0.00018,2]
[408530559,1773839465136,500.0,0.0003013,120]
[408530560,1773839466364,1800.0,0.00030137,120]
[408530561,1773839466637,1800.0,0.00030137,120]
[408530562,1773839466890,1800.0,0.00030137,120]
[408530563,1773839467388,1800.0,0.00030137,120]
[408530564,1773839468119,1800.0,0.00030137,120]
[408530565,1773839468610,1800.0,0.00030137,120]
[408530566,1773839468871,1800.0,0.00030137,120]
[408530567,1773839469132,1800.0,0.00030137,120]
[408530568,1773839469390,1800.0,0.00030137,120]
[408530569,1773839469671,1800.0,0.00030137,120]
[408530570,1773839469951,1800.0,0.00030137,120]
[408530571,1773839470212,1800.0,0.00030137,120]
[408530572,1773839470468,1800.0,0.00030137,120]
[408530573,1773839470747,1800.0,0.00030137,120]
[408530574,1773839471013,1800.0,0.00030137,120]
[408530575,1773839471304,1800.0,0.00030137,120]
[408530576,1773839471566,1800.0,0.00030137,120]
[408530577,1773839471818,1800.0,0.00030137,120]
[408530578,1773839472194,1800.0,0.00030137,120]
[408530579,1773839472449,1800.0,0.00030137,120]
[408530580,1773839472859,1800.0,0.00030137,120]